bitfinex/quotes_ETHUSD_20260308
["timestamp","ask_amount","ask_price","bid_price","bid_amount"]
[1773007324402,0.46009094,1942.4,1941.5,0.0011]
[1773007324725,0.46009094,1942.2,1941.5,0.0011]
[1773007326803,0.49810551,1942.0,1941.5,0.0011]
[1773007327931,0.49810551,1942.0,1940.4,0.46193743]
[1773007327932,0.49810551,1941.6,1940.4,0.46193743]
[1773007328237,0.49810551,1941.6,1940.0,5.15538104]
[1773007328238,0.49810551,1941.3,1940.0,0.00153886]
[1773007328403,0.49810551,1940.9,1940.0,1.29019864]
[1773007328606,0.49810551,1940.9,1940.0,0.00153886]
[1773007328813,0.49810551,1940.9,1939.5,0.46303743]
[1773007328814,0.49810551,1940.9,1939.5,0.0011]
[1773007328815,0.14948499,1940.2,1939.5,0.0011]
[1773007329013,0.49810551,1940.1,1939.4,1.2901524]
[1773007329218,0.49810551,1940.1,1939.4,0.0011]
[1773007329420,0.49810551,1940.0,1939.4,0.0011]
[1773007329628,3.12542938,1939.9,1939.4,0.0011]
[1773007329829,3.12542938,1939.9,1938.6,1.29258128]
[1773007329830,0.49810551,1939.7,1938.6,1.29258128]
[1773007330138,0.49810551,1939.4,1938.6,1.29258128]
[1773007330518,0.34810551,1939.4,1938.6,1.29258128]
[1773007330722,1.28912494,1939.3,1938.6,0.003]
[1773007331053,0.34810551,1939.4,1938.6,0.003]
[1773007331255,0.14948499,1939.7,1938.6,0.003]
[1773007331462,0.49810551,1939.6,1938.6,0.003]
[1773007331613,2.37110551,1939.5,1938.6,0.003]
[1773007332041,0.49810551,1939.3,1938.1,5.15942627]
[1773007332387,2.37110551,1939.3,1938.1,5.15942627]
[1773007332679,0.49810551,1939.2,1938.1,5.15942627]
[1773007332953,0.49810551,1939.2,1937.9,1.29005624]
[1773007332954,0.49810551,1938.6,1937.9,1.29005624]
[1773007333172,0.00153886,1939.0,1937.9,1.29005624]
[1773007333444,0.00153886,1939.0,1938.0,0.46193743]
[1773007333739,0.49810551,1939.8,1938.2,0.46193743]
[1773007334040,4.44043706,1939.8,1938.2,0.46193743]
[1773007334346,1.7869369,1939.8,1938.2,0.46193743]
[1773007334711,0.00153886,1940.0,1938.4,0.49072771]
[1773007334937,0.00153886,1940.0,1938.6,0.49072771]
[1773007335343,0.01854457,1939.6,1938.2,1.78057742]
[1773007335516,0.01854457,1939.3,1938.0,1.2914857]
[1773007335845,0.01854457,1939.3,1938.0,1.78221341]
[1773007336067,2.67204473,1939.7,1938.1,0.49072771]
[1773007336340,0.01854457,1939.7,1938.1,0.49072771]
[1773007336541,2.65503902,1940.0,1938.1,0.49072771]
[1773007336741,0.00153886,1940.0,1938.3,0.49072771]
[1773007336946,0.00153886,1940.0,1938.5,0.49072771]
[1773007337336,1.28835728,1940.5,1938.5,0.49145828]
[1773007337533,1.2881286,1940.8,1939.1,0.49145828]
[1773007338740,1.28811171,1940.9,1939.1,0.49145828]
[1773007338943,0.00153886,1941.0,1939.3,0.49145828]
[1773007340880,0.00153886,1941.0,1939.5,0.4979412]
[1773007341213,0.00153886,1941.0,1939.7,0.4979412]
[1773007342843,0.001,1940.9,1939.9,0.46353186]
[1773007344835,0.001,1940.9,1940.0,1.28865979]
[1773007345158,0.001,1940.9,1940.0,1.75219165]
[1773007347346,0.001,1940.9,1940.1,0.46353186]
[1773007349039,0.001,1940.9,1940.2,1.28852695]
[1773007350562,0.001,1940.9,1940.2,1.75205881]
[1773007350746,0.001,1940.9,1940.1,1.28854101]
[1773007350946,0.001,1940.9,1940.3,1.7519924]
[1773007351669,0.001,1940.9,1940.4,0.46353186]
[1773007352567,0.00153886,1941.0,1940.4,0.46303186]
[1773007353140,0.00153886,1941.0,1940.6,0.48421915]
[1773007353340,0.00153886,1941.0,1940.2,1.77270989]
[1773007353661,0.00153886,1941.0,1939.8,0.48421915]
[1773007355038,0.001,1940.8,1939.9,1.28872622]
[1773007355230,0.001,1940.8,1940.1,0.48421915]
[1773007356657,0.001,1940.8,1940.0,0.48421915]
[1773007356958,0.001,1940.8,1939.7,0.48421915]
[1773007357159,0.001,1940.8,1939.8,1.28879265]
[1773007357571,0.001,1940.8,1939.9,0.48421915]
[1773007359272,0.001,1940.8,1940.0,1.28865979]
[1773007359436,0.001,1940.8,1939.9,1.77289944]
[1773007359764,0.001,1940.8,1939.6,1.7731447]
[1773007360462,0.11756889,1940.8,1939.6,1.7731447]
[1773007360662,0.11756889,1940.8,1939.7,0.48421915]
[1773007361633,1.28819498,1940.7,1939.8,1.28879265]
[1773007362270,1.28916339,1940.8,1939.9,0.48421915]
[1773007363680,0.001,1940.8,1940.0,1.28865979]
[1773007363880,0.001,1940.8,1940.0,1.77287894]
[1773007365365,1.09350157,1941.0,1940.1,0.48421915]
[1773007365748,5.15142438,1941.3,1940.2,1.7727461]
[1773007365945,7.80847255,1941.3,1940.2,1.7727461]
[1773007366867,0.001,1940.8,1940.2,1.7727461]
[1773007368340,0.001,1940.8,1940.3,0.48421915]
[1773007369778,1.28759785,1941.6,1940.4,0.48421915]
[1773007370569,5.15039142,1941.8,1940.6,0.48421915]
[1773007371078,1.28746523,1941.8,1940.6,0.48421915]
[1773007371245,1.28746523,1941.8,1940.6,0.28712731]
[1773007371441,1.28746523,1941.8,1940.3,7.72018125]
[1773007371442,2.9717089,1941.4,1940.3,0.48421915]
[1773007371666,2.9717089,1941.4,1940.1,5.15357658]
[1773007371667,0.31466073,1941.3,1940.1,1.28859337]
[1773007371940,0.31466073,1941.0,1940.0,1.29128784]
[1773007372144,0.31466073,1941.0,1940.0,1.29129014]
[1773007372357,1.28806223,1940.9,1940.0,0.00263886]
[1773007372646,1.28806223,1940.9,1939.9,0.0011]
[1773007372647,2.9717089,1940.8,1939.9,0.0011]
[1773007373169,0.31466073,1940.8,1939.9,0.0011]
[1773007374069,3.12906223,1940.9,1939.9,0.0011]
[1773007374272,1.28806223,1940.9,1939.9,0.48531915]
[1773007374445,1.28806223,1940.9,1940.0,1.28865979]
[1773007374770,7.81083598,1941.0,1940.1,0.48421915]
[1773007374771,1.2895702,1941.0,1940.1,0.48421915]
[1773007375000,2.79866272,1941.9,1940.4,0.48421915]
[1773007375001,7.88273748,1941.9,1940.4,0.48421915]
[1773007375141,2.65704817,1941.6,1940.4,0.48421915]
[1773007375339,2.9717089,1941.6,1940.4,0.48421915]
[1773007375865,4.8117089,1941.6,1940.4,0.48421915]
[1773007376167,2.65704817,1941.7,1940.4,0.48421915]
[1773007376371,2.9717089,1941.7,1940.4,0.48421915]
[1773007376666,1.2354408,1941.6,1940.5,1.7725469]
[1773007376971,1.2354408,1941.6,1940.6,0.48421915]
[1773007378186,4.2071497,1941.6,1940.6,0.48421915]
[1773007378479,1.28786317,1941.2,1940.3,1.77264964]
[1773007378638,1.28786317,1941.2,1940.0,5.15616585]
[1773007378639,2.9717089,1941.0,1940.0,0.48575801]
[1773007378841,3.36537146,1941.0,1940.0,1.29019448]
[1773007379093,2.9717089,1941.0,1940.0,1.29019448]
[1773007379439,1.838,1940.9,1940.0,0.00153886]
[1773007379646,0.39366256,1940.8,1940.0,0.00153886]
[1773007379976,1.838,1940.9,1940.3,0.0011]
[1773007380176,2.15266073,1940.9,1940.3,0.0011]
[1773007380344,0.70832329,1940.8,1940.3,0.0011]
[1773007380552,1.28819498,1940.7,1940.3,0.0011]
[1773007381753,5.15234705,1940.9,1940.3,0.0011]
[1773007381958,6.98934705,1940.9,1940.3,0.0011]
[1773007382179,1.28803604,1941.0,1940.3,0.0011]
[1773007382603,5.151979,1941.1,1940.3,0.0011]
[1773007385126,5.151979,1941.1,1940.3,0.49030585]
[1773007385416,3.12479683,1941.3,1940.3,0.49030585]
[1773007385794,1.28777712,1941.4,1940.3,0.49030585]
[1773007385986,4.25948602,1941.4,1940.3,0.49030585]
[1773007386181,4.25948602,1941.4,1940.2,1.28962695]
[1773007386182,0.31466073,1941.0,1940.2,0.0011]
[1773007386494,1.837,1940.9,1940.2,0.0011]
[1773007386700,1.2881286,1940.8,1940.2,0.0011]
[1773007388092,1.28803616,1941.0,1940.2,0.47502867]
[1773007388294,5.78079985,1941.0,1940.2,0.0011]
[1773007388496,5.78079985,1941.0,1939.3,0.47392867]
[1773007388497,0.31466073,1940.4,1939.3,0.47392867]
[1773007388706,0.31466073,1940.4,1938.6,6.98244386]
[1773007388707,1.29239865,1940.0,1939.0,0.47546753]
[1773007388913,2.80353042,1939.7,1939.0,0.00153886]
[1773007389119,2.80353042,1939.7,1938.6,0.0011]
[1773007389120,2.65676369,1939.2,1938.6,0.0011]
[1773007389413,1.836,1939.3,1938.6,0.0011]
[1773007389784,1.836,1939.3,1938.3,1.2897781]
[1773007390307,1.836,1939.3,1938.0,0.00153886]
[1773007390308,0.31466073,1939.2,1938.0,0.00153886]
[1773007390506,4.49731586,1939.3,1937.3,1.76431785]
[1773007390507,0.31466073,1938.6,1937.3,1.76431785]
[1773007390695,0.31466073,1938.3,1937.1,5.16231888]
[1773007390897,3.95103934,1938.4,1936.4,0.84826438]
[1773007390898,7.98394758,1938.0,1936.4,0.84826438]
[1773007391098,3.375,1938.2,1935.0,0.00153886]
[1773007391099,3.375,1938.2,1935.2,1.29185613]
[1773007391100,0.85055063,1936.9,1935.2,1.29185613]
[1773007391300,5.77155063,1938.2,1935.0,0.00153886]
[1773007391301,2.66131586,1936.1,1935.0,0.00153886]
[1773007391608,0.45519548,1936.0,1935.0,0.00153886]
[1773007391916,0.45519548,1936.0,1934.9,1.29202279]
[1773007391917,2.66131586,1935.7,1934.3,0.47392867]
[1773007392134,2.66131586,1935.7,1933.9,2.65343272]
[1773007392135,0.31466073,1935.7,1933.9,3.12736139]
[1773007392288,0.31466073,1935.7,1934.2,0.47392867]
[1773007392491,0.14948499,1935.9,1934.2,0.47392867]
[1773007392714,0.14948499,1935.9,1934.0,5.17203782]
[1773007392715,0.4958785,1935.6,1934.5,1.76625226]
[1773007392913,2.17717732,1936.0,1934.6,0.47392867]
[1773007392914,3.46851866,1936.0,1934.6,0.47392867]
[1773007393119,0.31466073,1935.9,1934.5,1.29232359]
[1773007393353,2.66131586,1935.9,1934.3,1.29245721]
[1773007393493,2.66131586,1935.6,1934.2,1.76641784]
[1773007393691,0.14948499,1935.7,1934.3,0.47392867]
[1773007394004,1.63251866,1936.0,1934.3,0.47392867]
[1773007394005,0.34117732,1936.0,1934.3,0.47392867]
[1773007394219,0.33817732,1936.0,1934.3,0.47392867]
[1773007394423,0.33817732,1936.0,1935.0,0.47546753]
[1773007394606,0.33817732,1936.0,1934.2,1.35802517]
[1773007394607,2.08458116,1936.0,1934.3,0.47392867]
[1773007394927,0.45507076,1935.3,1934.0,1.29417757]
[1773007395720,0.45507076,1935.9,1934.1,0.47392867]
[1773007395905,1.62951674,1936.0,1934.3,0.47392867]
[1773007395906,0.33817732,1936.0,1934.3,0.47392867]
[1773007396106,0.33817732,1936.0,1934.2,2.65343272]
[1773007396107,0.33971618,1936.0,1934.5,0.47392867]
[1773007396305,0.00153886,1937.0,1935.0,0.47392867]
[1773007396628,1.7472689,1937.0,1935.0,0.47546753]
[1773007396827,1.7472689,1937.0,1935.2,0.47392867]
[1773007397150,0.45507076,1936.9,1935.2,0.47392867]
[1773007397354,0.45507076,1936.8,1935.1,1.29192289]
[1773007397566,1.29219814,1937.0,1935.0,1.29351717]
[1773007397567,0.45507076,1936.3,1935.0,1.29351717]
[1773007397724,0.14948499,1936.2,1935.0,0.00153886]
[1773007397922,0.45507076,1936.3,1935.1,1.29192289]
[1773007398437,0.45507076,1936.1,1935.0,0.00153886]
[1773007398955,0.14948499,1936.5,1935.0,0.00153886]
[1773007398956,1.2910862,1936.4,1935.0,0.00153886]
[1773007399161,1.74609564,1936.5,1935.0,0.47546753]
[1773007399471,2.66131586,1936.9,1935.0,0.47546753]
[1773007399472,0.45507076,1936.9,1935.0,0.47546753]
[1773007399960,0.45507076,1936.9,1935.2,0.47392867]
[1773007400274,0.00153886,1937.0,1935.2,0.47392867]
[1773007400566,0.00153886,1937.0,1935.4,0.47392867]
[1773007401040,0.00153886,1937.0,1935.6,0.47392867]
[1773007401577,0.45660962,1937.0,1935.2,1.29185613]
[1773007401872,0.45507076,1936.7,1935.2,1.24185613]
[1773007402037,0.45507076,1936.7,1935.2,1.7157848]
[1773007402216,0.45507076,1936.7,1935.2,1.24185613]
[1773007402420,2.66131586,1936.8,1935.0,0.00153886]
[1773007402421,0.45507076,1936.3,1935.0,0.00153886]
[1773007402621,0.45507076,1936.1,1935.0,0.00153886]
[1773007403053,8.05102244,1937.0,1935.1,0.47392867]
[1773007403054,0.40714446,1936.4,1935.1,0.47392867]
[1773007403258,1.74596202,1936.7,1935.1,0.47392867]
[1773007403465,0.45507076,1936.6,1935.1,0.47392867]
[1773007403631,0.45507076,1936.2,1935.0,0.00153886]
[1773007403959,0.45507076,1935.8,1934.4,1.29235052]
[1773007404865,0.45507076,1935.8,1935.3,0.0011]
[1773007405177,0.45507076,1935.6,1934.3,5.16975762]
[1773007405334,0.45507076,1935.6,1934.3,5.64368629]
[1773007405535,0.00153886,1936.0,1934.4,0.47392867]
[1773007405755,5.16321183,1936.8,1934.5,0.47392867]
[1773007405955,1.29078893,1936.8,1935.3,0.47392867]
[1773007406560,1.74585969,1936.8,1935.3,0.47392867]
[1773007406759,1.74585969,1936.8,1935.2,0.0011]
[1773007406760,0.45507076,1936.5,1935.2,0.0011]
[1773007406938,1.74632637,1936.1,1935.2,0.0011]
[1773007407141,0.45507076,1936.0,1935.2,0.0011]
[1773007408054,3.95257147,1936.1,1934.4,1.1923252]
[1773007408055,0.45507076,1935.7,1934.4,1.1923252]
[1773007408254,0.45507076,1935.8,1934.4,1.1923252]
[1773007408457,0.15102385,1936.0,1934.4,0.47392867]
[1773007408762,0.45507076,1935.9,1934.4,0.47392867]
[1773007409162,1.29145572,1935.8,1934.5,1.29232359]
[1773007409537,0.45507076,1935.7,1934.3,1.29245721]
[1773007410138,0.45507076,1935.6,1934.1,5.17030978]
[1773007410369,0.60455575,1934.9,1933.5,1.29299198]
[1773007410539,0.45507076,1934.6,1933.1,1.29325953]
[1773007410741,0.45507076,1934.0,1933.0,0.00153886]
[1773007410935,0.14948499,1934.3,1933.0,1.2948644]
[1773007411163,1.74752423,1934.4,1933.0,0.00153886]
[1773007411366,1.74747299,1934.4,1933.0,0.47546753]
[1773007411958,0.14948499,1933.9,1933.0,0.00153886]
[1773007412161,0.45507076,1933.9,1933.0,0.00153886]
[1773007412379,0.45507076,1933.9,1932.2,5.17464424]
[1773007412380,0.14948499,1933.9,1932.1,1.29392888]
[1773007412589,0.45507076,1933.6,1932.1,1.29392888]
[1773007412745,0.45507076,1933.6,1931.0,0.00153886]
[1773007412746,2.63989354,1934.0,1931.0,0.00153886]
[1773007412747,0.49409515,1932.0,1931.0,0.00153886]
[1773007412946,8.13343257,1933.0,1931.0,1.29618129]
[1773007412947,0.14948499,1932.9,1931.0,1.29618129]
[1773007413189,0.00153886,1933.0,1931.1,0.46849475]
[1773007413501,5.64581956,1934.0,1932.0,0.00153886]
[1773007413502,0.49409515,1933.1,1932.0,0.00153886]
[1773007413786,0.49563401,1933.0,1931.1,0.46849475]
[1773007413949,2.66131586,1932.7,1931.0,1.24772015]
[1773007414147,2.66131586,1932.7,1930.9,5.1786639]
[1773007414148,0.49409515,1931.9,1930.2,0.46849475]
[1773007414474,0.49409515,1931.9,1930.1,3.7907189]
[1773007414676,0.49409515,1931.6,1930.1,3.7907189]
[1773007414846,0.49409515,1931.6,1930.1,1.29526967]
[1773007415042,0.14948499,1931.9,1930.0,0.00153886]
[1773007415043,0.49409515,1931.2,1930.0,0.00153886]
[1773007415272,0.49409515,1931.1,1930.0,0.00153886]
[1773007415476,0.49409515,1930.8,1930.0,0.00153886]
[1773007415652,0.49409515,1930.8,1929.3,3.79118883]
[1773007415653,0.49409515,1930.8,1929.3,1.29579655]
[1773007415850,1.4439647,1931.3,1929.1,1.29594111]
[1773007415851,0.49409515,1930.6,1929.1,1.29594111]
[1773007416051,1.29447971,1931.3,1929.0,1.29753712]
[1773007416052,0.49409515,1930.4,1929.0,1.29753712]
[1773007416355,0.14948499,1930.1,1928.5,1.2963443]
[1773007416663,0.14948499,1930.1,1927.8,5.18706845]
[1773007416664,0.065536,1930.7,1927.0,0.00153886]
[1773007416665,0.49409515,1929.3,1927.0,0.00153886]
[1773007416886,0.49409515,1929.3,1927.1,5.18912417]
[1773007416887,0.42853631,1929.2,1927.1,5.18912417]
[1773007417180,0.49409515,1929.7,1927.5,0.25640321]
[1773007417782,0.00153886,1930.0,1928.7,0.25640321]
[1773007418077,0.00153886,1931.0,1929.5,0.065536]
[1773007418283,0.00153886,1932.0,1930.3,0.25640321]
[1773007418481,0.49409515,1932.7,1930.7,0.25640321]
[1773007418682,1.29359412,1932.6,1930.7,0.25640321]
[1773007418883,0.49717287,1932.6,1931.0,0.00153886]
[1773007419085,0.49409515,1932.0,1931.0,0.00153886]
[1773007419446,0.49717287,1931.9,1931.0,0.00153886]
[1773007419653,0.49409515,1931.8,1930.3,1.29513547]
[1773007419870,0.49409515,1931.5,1930.0,1.29680853]
[1773007420184,0.49409515,1931.5,1930.1,5.18102126]
[1773007420482,0.00307772,1931.5,1930.2,2.49544923]
[1773007420682,0.00307772,1931.5,1930.0,1.29680853]
[1773007420683,0.49563401,1932.0,1930.0,0.00153886]
[1773007420684,0.49717287,1931.4,1930.0,0.00153886]
[1773007420987,0.49409515,1931.1,1930.0,1.29687265]
[1773007421186,0.49409515,1931.0,1930.0,0.00153886]
[1773007421657,0.49409515,1930.5,1929.2,1.29587393]
[1773007422064,0.00307772,1930.4,1929.2,1.29587393]
[1773007422253,0.00153886,1931.0,1929.2,1.29587393]
[1773007422455,0.49717287,1930.9,1929.2,1.29587393]
[1773007422970,0.00307772,1930.8,1929.2,1.29587393]
[1773007423271,0.49409515,1930.7,1929.0,5.1861346]
[1773007423470,0.49717287,1930.7,1929.0,5.1861346]
[1773007423671,0.00153886,1931.0,1929.2,0.23717244]
[1773007423852,0.00153886,1931.0,1929.3,0.23717244]
[1773007424056,0.49409515,1931.7,1929.7,0.065536]
[1773007424252,0.00307772,1931.6,1930.0,0.00153886]
[1773007424480,3.07667883,1931.6,1930.0,0.00153886]
[1773007424659,0.49717287,1931.5,1930.0,0.00153886]
[1773007424866,0.49409515,1931.5,1930.0,0.00153886]
[1773007425053,0.49409515,1931.2,1930.0,0.00153886]
[1773007425263,0.00307772,1931.4,1930.0,0.00153886]
[1773007425460,0.00307772,1931.3,1930.1,2.49544923]
[1773007425661,0.49409515,1931.7,1930.1,2.49544923]
[1773007425662,0.00307772,1931.6,1930.1,2.49544923]
[1773007425856,0.00307772,1931.6,1930.2,2.00963358]
[1773007426061,0.00307772,1931.5,1930.2,2.00963358]
[1773007426259,0.49717287,1931.9,1930.1,2.49544923]
[1773007426568,0.49717287,1931.9,1930.0,0.00153886]
[1773007426885,0.49409515,1931.7,1930.0,0.00153886]
[1773007427394,0.49409515,1931.5,1930.0,0.00153886]
[1773007427791,0.49717287,1931.4,1930.0,0.00153886]
[1773007427990,2.84852166,1931.9,1930.0,0.00153886]
[1773007427991,0.00307772,1931.5,1930.0,0.00153886]
[1773007428295,0.49409515,1931.9,1930.1,2.73108281]
[1773007428468,7.772e-05,1931.8,1930.1,2.73108281]
[1773007428787,0.49409515,1931.9,1930.2,0.23563358]
[1773007429185,0.49409515,1931.9,1930.3,1.29513547]
[1773007429391,0.49409515,1931.8,1930.3,1.29513547]
[1773007430115,1.29408298,1931.9,1930.0,0.00153886]
[1773007430116,0.14948499,1930.9,1930.0,0.00153886]
[1773007430273,2.69903667,1931.2,1927.9,1.55605012]
[1773007430274,0.49409515,1930.8,1928.2,1.296546]
[1773007430593,0.14948499,1930.2,1928.2,1.296546]
[1773007430768,0.87899434,1930.1,1930.0,0.0011]
[1773007430973,0.87899434,1929.9,1929.8,0.0011]
[1773007431174,0.87899434,1929.9,1928.2,1.296546]
[1773007431175,0.87899434,1929.8,1928.2,1.296546]
[1773007431378,0.14948499,1929.3,1928.0,0.00153886]
[1773007431558,6.65575643,1929.9,1928.0,0.00153886]
[1773007431559,0.87899434,1929.0,1928.0,0.00153886]
[1773007431761,0.87899434,1929.0,1927.1,5.18906399]
[1773007431762,0.87899434,1928.8,1926.8,0.75340411]
[1773007431992,0.87899434,1928.8,1927.0,1.29888007]
[1773007431993,0.87899434,1928.4,1927.0,1.29888007]
[1773007432765,0.87899434,1928.4,1927.1,1.811536]
[1773007433190,0.49563401,1929.0,1927.3,0.065536]
[1773007433694,0.00153886,1929.0,1927.3,0.18654164]
[1773007434073,0.00153886,1929.0,1927.4,0.12100564]
[1773007435117,0.00153886,1929.0,1925.5,5.19319512]
[1773007435118,0.49409515,1928.7,1925.5,5.19319512]
[1773007435413,0.49409515,1928.7,1925.1,1.29863383]
[1773007435414,0.49409515,1926.6,1925.1,1.29863383]
[1773007435616,0.49409515,1926.6,1925.1,1.30009497]
[1773007435828,0.00153886,1927.0,1925.2,1.75746114]
[1773007435988,0.49409515,1926.9,1925.2,0.00146114]
[1773007436191,0.49409515,1926.9,1925.3,0.00146114]
[1773007436494,0.49409515,1926.9,1925.1,1.29863383]
[1773007436495,0.49409515,1927.5,1925.2,0.12100564]
[1773007436684,0.49409515,1927.5,1926.0,0.00153886]
[1773007437400,1.2970296,1927.5,1926.0,0.00153886]
[1773007437603,0.49409515,1927.4,1926.0,0.00153886]
[1773007439279,0.49409515,1927.4,1926.0,1.29956585]
[1773007439682,0.49409515,1927.3,1926.0,1.29956585]
[1773007439909,0.49409515,1927.3,1925.0,0.00153886]
[1773007440113,0.49409515,1927.3,1923.0,0.01167958]
[1773007440114,2.69903667,1925.4,1923.0,0.01167958]
[1773007440300,2.69903667,1925.4,1923.3,5.19935643]
[1773007440301,0.49409515,1925.0,1923.3,5.19935643]
[1773007440482,0.49409515,1925.0,1923.1,1.2999844]
[1773007440678,0.49563401,1925.0,1923.1,1.2999844]
[1773007441405,0.49563401,1925.0,1923.3,1.29984921]
[1773007441406,0.49409515,1924.8,1923.3,1.29984921]
[1773007441714,0.49409515,1924.6,1923.3,1.29984921]
[1773007441919,0.00153886,1925.0,1923.3,1.29984921]
[1773007442089,0.49409515,1925.8,1923.4,0.065536]
[1773007442298,2.69903667,1925.9,1923.3,1.29984921]
[1773007442299,0.49409515,1925.6,1923.3,1.29984921]
[1773007442501,0.14948499,1924.6,1923.3,1.29984921]
[1773007442702,0.49409515,1924.3,1923.3,1.29984921]
[1773007442903,0.49409515,1924.3,1924.0,0.00153886]
[1773007443103,3.99719072,1925.9,1924.0,0.00153886]
[1773007443104,0.45807167,1925.0,1924.0,0.00153886]
[1773007443305,3.99719072,1925.9,1923.4,0.065536]
[1773007443306,0.45807167,1924.6,1923.4,5.19885625]
[1773007443497,0.14948499,1924.5,1923.5,1.29971406]
[1773007443715,0.45807167,1924.6,1923.5,1.29971406]
[1773007444228,0.00153886,1925.0,1923.6,0.065536]
[1773007444431,0.00153886,1925.0,1923.8,0.065536]
[1773007445128,0.33268022,1925.0,1923.6,0.065536]
[1773007445329,0.00153886,1925.0,1923.8,0.065536]
[1773007445528,2.69903667,1925.9,1924.0,0.065536]
[1773007445744,0.45807167,1925.8,1924.0,0.00153886]
[1773007445986,0.45807167,1925.7,1924.0,0.00153886]
[1773007446235,0.49962421,1925.6,1924.0,0.00153886]
[1773007446562,0.36727469,1925.7,1924.0,0.00153886]
[1773007446563,0.36464969,1925.7,1924.0,0.00153886]
[1773007446709,3.19866088,1925.9,1924.0,0.00153886]
[1773007446907,4.49677531,1925.9,1924.0,0.00153886]
[1773007447108,0.49962421,1925.8,1924.0,0.00153886]
[1773007447338,0.49962421,1925.4,1924.0,0.00153886]
[1773007447653,0.14948499,1925.3,1924.0,0.00153886]
[1773007447800,0.00153886,1926.0,1924.0,0.55094354]
[1773007447999,0.00153886,1926.0,1924.0,0.48540754]
[1773007448000,0.83574466,1925.9,1924.0,0.48540754]
[1773007448218,0.84830981,1925.8,1924.0,0.00153886]
[1773007448415,0.49962421,1925.8,1924.0,0.00153886]
[1773007448802,0.00153886,1926.0,1924.4,0.48386868]
[1773007449127,0.00153886,1926.0,1924.2,2.74437081]
[1773007449128,0.00153886,1926.0,1924.6,0.48386868]
[1773007449331,0.00153886,1926.0,1924.7,1.29890372]
[1773007449512,0.00153886,1926.0,1924.1,1.543]
[1773007449727,0.00153886,1926.0,1924.2,1.78310992]
[1773007449904,0.33610378,1925.9,1924.3,0.48386868]
[1773007450321,0.00153886,1926.0,1924.5,0.48386868]
[1773007451437,0.14948499,1922.8,1922.1,5.05145579]
[1773007451765,2.51288916,1922.9,1921.5,5.20414864]
[1773007451766,0.14948499,1922.6,1921.5,5.20414864]
[1773007451910,5.21004044,1922.9,1921.5,5.20414864]
[1773007451911,2.51288916,1922.9,1921.6,0.17170432]
[1773007452250,2.51288916,1922.9,1921.0,5.21565742]
[1773007452251,2.51288916,1922.9,1921.0,1.56960622]
[1773007452412,2.51288916,1922.9,1921.1,1.56960622]
[1773007452736,2.45288916,1922.9,1920.7,1.30160878]
[1773007453111,0.00153886,1922.0,1920.5,1.30167655]
[1773007453334,2.46133252,1921.9,1920.5,1.30174433]
[1773007453586,2.7903024,1921.9,1918.9,0.01016239]
[1773007453783,0.3582556,1921.8,1920.0,1.30871891]
[1773007453960,0.14948499,1921.8,1920.1,0.48535713]
[1773007454161,0.14948499,1921.8,1919.8,5.20833333]
[1773007454361,0.14948499,1921.8,1919.7,5.20860461]
[1773007454362,0.14948499,1921.6,1919.7,5.20860461]
[1773007454563,0.14948499,1921.6,1919.1,1.30269397]
[1773007454564,2.99687954,1921.5,1919.1,1.30269397]
[1773007454764,0.14948499,1921.3,1920.0,0.00153886]
[1773007454953,0.14948499,1921.3,1918.8,5.21077588]
[1773007454954,0.14948499,1920.9,1918.5,5.21159057]
[1773007455155,0.49962421,1920.8,1918.3,5.6962742]
[1773007455359,0.00153886,1921.0,1920.1,0.0011]
[1773007455813,0.50116307,1921.0,1920.1,0.0011]
[1773007455967,0.00153886,1921.0,1920.1,0.0011]
[1773007456321,0.49962421,1921.6,1920.1,0.0011]
[1773007456322,0.00153886,1922.0,1920.4,0.48386868]
[1773007456468,1.58264494,1922.6,1920.1,0.17170432]
[1773007456792,1.58264494,1922.6,1920.1,0.17016546]
[1773007457304,0.00153886,1924.0,1921.7,0.48386868]
[1773007457508,0.49962421,1924.7,1922.2,0.48386868]
[1773007457801,0.34046038,1924.8,1921.6,0.54940468]
[1773007457802,3.19677549,1924.3,1921.6,0.54940468]
[1773007458000,0.49962421,1924.3,1921.6,0.54940468]
[1773007458389,0.85385016,1924.4,1922.0,0.00153886]
[1773007458589,2.69715128,1924.0,1922.0,0.48540754]
[1773007458803,2.69715128,1924.0,1923.0,0.00153886]
[1773007459004,3.19677549,1924.4,1923.0,0.00153886]
[1773007459208,2.69715128,1923.4,1922.0,0.00153886]
[1773007459376,2.69715128,1923.5,1922.0,0.00153886]
[1773007459575,3.0553547,1923.4,1922.0,0.00153886]
[1773007459806,0.14948499,1923.3,1922.0,0.00153886]
[1773007460106,3.01251337,1923.8,1921.6,1.30099916]
[1773007460107,2.69715128,1922.8,1921.6,1.30099916]
[1773007460407,2.51288916,1923.8,1921.6,1.30099916]
[1773007460612,0.00153886,1924.0,1922.0,0.48540754]
[1773007460780,0.00153886,1924.0,1922.2,0.065536]
[1773007460976,0.49962421,1923.9,1922.2,1.825536]
[1773007461307,0.49962421,1923.9,1922.0,0.00153886]
[1773007461308,2.69715128,1923.1,1922.0,0.00153886]
[1773007461506,0.49962421,1923.5,1922.0,0.00153886]
[1773007461708,0.00153886,1924.0,1922.0,0.00153886]
[1773007461908,0.00153886,1924.0,1922.0,0.48540754]
[1773007463111,0.00153886,1924.0,1922.1,0.065536]
[1773007463312,0.00153886,1924.0,1922.2,1.84999775]
[1773007464409,0.00153886,1924.0,1922.6,0.54940468]
[1773007464612,0.00153886,1925.0,1922.6,0.54940468]
[1773007464777,0.00153886,1925.0,1923.0,0.00153886]
[1773007464985,0.00153886,1925.0,1923.3,0.065536]
[1773007465211,2.69715128,1924.9,1923.4,0.065536]
[1773007465410,2.69715128,1924.9,1923.5,1.29971406]
[1773007465909,0.00153886,1925.0,1923.5,1.29971406]
[1773007466301,2.69715128,1924.9,1923.5,1.29971406]
[1773007466612,0.00153886,1925.0,1923.5,1.78358274]
[1773007466829,2.69715128,1924.8,1923.5,1.29971406]
[1773007467333,0.00153886,1925.0,1923.3,5.19885625]
[1773007467626,0.00153886,1925.0,1923.4,0.065536]
[1773007467781,0.00153886,1925.0,1923.3,5.19885625]
[1773007468286,2.51288916,1923.0,1920.1,5.20801194]
[1773007468583,2.51288916,1923.0,1918.1,0.003]
[1773007468584,2.51288916,1923.0,1919.7,0.11427476]
[1773007468585,0.49962421,1921.6,1919.7,0.11427476]
[1773007468783,0.44111107,1922.5,1921.7,0.0011]
[1773007469009,0.49962421,1922.8,1921.5,0.0011]
[1773007469198,0.00153886,1922.0,1921.5,0.0011]
[1773007469404,0.00153886,1922.0,1921.6,5.20647308]
[1773007469593,0.00153886,1922.0,1921.5,0.0011]
[1773007469793,0.00153886,1922.0,1921.0,1.30140551]
[1773007470085,0.00153886,1922.0,1921.1,5.20647308]
[1773007470513,0.50116307,1922.0,1920.1,5.20751965]
[1773007470782,0.00153886,1922.0,1920.4,0.48386868]
[1773007471088,0.00153886,1922.0,1920.5,0.065536]
[1773007471323,0.00153886,1922.0,1920.6,1.30167655]